bitfinex-derivatives/quotes_SOLF0:USTF0_20251211
["timestamp","ask_amount","ask_price","bid_price","bid_amount"]
[1765423916811,12.22456428,129.58,129.55,0.04997188]
[1765423917517,6.9988631,129.58,129.55,0.04997188]
[1765423920208,0.0542631,129.58,129.55,3.32997188]
[1765423921317,65.56,129.66,129.57,3.28]
[1765423921609,124.6521957,129.69,129.59,3.28]
[1765423921813,113.16150118,129.69,129.59,3.28]
[1765423922009,6.9392,129.68,129.6,3.28]
[1765423922416,0.05049572,129.65,129.63,0.05831647]
[1765423923315,113.2396969,129.65,129.63,0.05831647]
[1765423924416,120.1805969,129.65,129.63,0.05831647]
[1765423924820,114.95489572,129.65,129.63,0.05831647]
[1765423927617,6.99139572,129.65,129.63,0.05831647]
[1765423930818,0.05049572,129.65,129.63,3.39831647]
[1765423932722,107.9033,129.73,129.64,3.34]
[1765423932916,113.56236249,129.73,129.64,3.34]
[1765423933714,0.05384664,129.7,129.67,3.39056871]
[1765423934223,107.97814664,129.7,129.67,0.05056871]
[1765423934428,107.9389,129.68,129.61,3.34]
[1765423934617,107.9303,129.69,129.61,3.34]
[1765423934815,6.9398,129.67,129.61,3.34]
[1765423935429,0.05736435,129.65,129.63,3.39527464]
[1765423937526,6.9381,129.7,129.63,3.39527464]
[1765423937725,107.8896,129.74,129.65,3.34]
[1765423938039,107.8978,129.73,129.65,3.34]
[1765423938528,107.8978,129.73,129.62,107.9816]
[1765423938529,0.05077711,129.7,129.68,3.39389665]
[1765423939224,107.8581,129.78,129.68,3.39389665]
[1765423939529,179.11343145,129.77,129.68,3.34]
[1765423939733,6.9359,129.74,129.68,3.34]
[1765423939928,6.9359,129.74,129.64,107.969]
[1765423939929,107.9155,129.71,129.64,3.34]
[1765423940335,6.98812776,129.69,129.66,0.05356756]
[1765423940629,6.98812776,129.69,129.66,3.39356756]
[1765423941019,6.98812776,129.69,129.66,0.05356756]
[1765423943232,6.9393,129.68,129.66,0.05356756]
[1765423947323,6.9393,129.68,129.66,3.39356756]
[1765423947524,6.9393,129.68,129.66,0.05356756]
[1765423949230,107.98302776,129.69,129.66,0.05356756]
[1765423949231,0.04962776,129.69,129.66,3.39356756]
[1765423950335,6.98832776,129.69,129.66,3.39356756]
[1765423950632,173.54492776,129.69,129.66,0.05356756]
[1765423951538,18.53733986,129.68,129.66,0.05356756]
[1765423951742,107.9521,129.67,129.6,3.34]
[1765423951940,107.9557,129.66,129.6,3.34]
[1765423952136,107.9644,129.65,129.6,3.34]
[1765423952729,0.05696252,129.64,129.61,0.05474651]
[1765423952930,6.9417,129.63,129.61,3.39474651]
[1765423953143,6.9417,129.63,129.61,0.05474651]
[1765423954532,65.56,129.62,129.61,0.00474651]
[1765423954728,108.0067,129.6,129.54,3.34]
[1765423955743,0.04862617,129.58,129.56,3.39455315]
[1765423955929,6.99302617,129.58,129.56,3.39455315]
[1765423956440,0.04862617,129.58,129.56,3.39455315]
[1765423960045,6.9419,129.63,129.57,3.34]
[1765423960547,6.9423,129.62,129.57,3.34]
[1765423961047,0.05387041,129.61,129.58,3.39417623]
[1765423961242,6.99677041,129.61,129.58,3.39417623]
[1765423963651,0.05387041,129.61,129.58,3.39417623]
[1765423967155,8.91798269,129.68,129.59,3.34]
[1765423967156,11.63195332,129.67,129.59,3.34]
[1765423967350,107.9469,129.67,129.59,3.34]
[1765423967849,107.939,129.68,129.6,3.34]
[1765423968166,0.05072099,129.65,129.63,3.39469921]
[1765423969362,6.99142099,129.65,129.63,3.39469921]
[1765423972866,6.99142099,129.65,129.63,0.05469921]
[1765423974467,6.99142099,129.65,129.63,3.39469921]
[1765423974763,0.05072099,129.65,129.63,3.39469921]
[1765423977473,6.99152099,129.65,129.63,0.05469921]
[1765423977673,114.95522099,129.65,129.63,0.05469921]
[1765423980375,65.58,129.64,129.63,0.05469921]
[1765423980782,6.944,129.59,129.53,3.43]
[1765423981172,65.58,129.61,129.53,3.43]
[1765423981374,6.9428,129.61,129.53,3.43]
[1765423981573,107.9863,129.63,129.53,3.43]
[1765423981869,0.05521436,129.59,129.57,3.48161736]
[1765423982376,0.05521436,129.59,129.57,0.05161736]
[1765423983887,0.05521436,129.59,129.57,3.48161736]
[1765423984085,0.05521436,129.59,129.57,0.05161736]
[1765423984869,0.05521436,129.59,129.57,3.39161736]
[1765423987478,6.9418,129.63,129.57,3.39161736]
[1765423987978,72.5207,129.65,129.57,3.39161736]
[1765423988172,72.5207,129.65,129.57,3.34]
[1765423988577,0.05249963,129.62,129.61,3.34]
[1765423989288,6.9395,129.67,129.61,3.34]
[1765423989783,5.24121897,129.69,129.61,3.34]
[1765423990082,11.62397772,129.68,129.61,3.34]
[1765423990296,0.05297819,129.66,129.64,3.34]
[1765423991575,65.58,129.7,129.64,3.34]
[1765423991777,113.15301897,129.72,129.64,3.34]
[1765423991977,6.9381,129.7,129.64,3.34]
[1765423992787,0.05784243,129.68,129.66,3.38876266]
[1765423994483,0.05784243,129.68,129.66,3.43876266]
[1765423996090,6.9371,129.72,129.66,3.43876266]
[1765423996478,6.9375,129.71,129.66,3.43876266]
[1765423996682,6.9375,129.71,129.66,3.39]
[1765423997287,0.02660818,129.7,129.68,3.39]
[1765423998483,6.96480818,129.7,129.67,0.05677256]
[1765423998684,5.60650447,129.7,129.67,0.05677256]
[1765423998890,0.02660818,129.7,129.67,3.44677256]
[1765424003297,113.55810989,129.76,129.67,3.44677256]
[1765424003498,107.881,129.75,129.67,3.39]
[1765424003697,6.9364,129.73,129.67,3.39]
[1765424003897,107.8982,129.73,129.67,3.39]
[1765424004193,107.8982,129.73,129.69,3.4390684]
[1765424004994,113.47309629,129.74,129.69,3.4390684]
[1765424005696,6.9374,129.71,129.69,3.4390684]
[1765424005994,6.9374,129.71,129.69,0.0490684]
[1765424006497,6.9374,129.71,129.69,3.4390684]
[1765424008387,6.9374,129.71,129.69,0.0490684]
[1765424008794,12.51729629,129.71,129.69,0.0490684]
[1765424012297,6.9374,129.71,129.69,0.0490684]
[1765424012893,6.9374,129.71,129.69,3.4390684]
[1765424013199,6.9374,129.71,129.69,0.0490684]
[1765424013401,6.9392,129.68,129.63,3.39]
[1765424014201,27.57989629,129.72,129.63,3.39]
[1765424014400,0.0490684,129.69,129.67,3.39]
[1765424017599,6.9369,129.72,129.67,3.39]
[1765424024304,5.57989629,129.72,129.67,3.39]
[1765424024510,113.48769629,129.72,129.66,0.05112356]
[1765424024710,2.00920167,129.69,129.66,3.44112356]
[1765424025009,6.9377,129.71,129.66,3.44112356]
[1765424025209,2.00920167,129.7,129.66,3.44112356]
[1765424027007,8.94710167,129.7,129.66,3.44112356]
[1765424027312,6.9379,129.7,129.66,3.44112356]
[1765424027710,2.00920167,129.71,129.66,3.44112356]
[1765424028099,6.9371,129.72,129.66,3.44112356]
[1765424028413,173.4184,129.76,129.66,3.44112356]
[1765424028414,8.94530167,129.74,129.67,3.39]
[1765424028710,6.9361,129.74,129.7,3.39]
[1765424028913,2.00920167,129.75,129.7,3.39]
[1765424029213,2.00920167,129.75,129.72,3.39]
[1765424029414,8.94450167,129.75,129.72,3.39]
[1765424029705,2.00920167,129.73,129.71,0.05786008]
[1765424030111,2.00920167,129.72,129.71,0.05786008]
[1765424030310,107.8835,129.75,129.71,0.05786008]
[1765424030512,2.00920167,129.73,129.71,0.05786008]
[1765424030911,8.94550167,129.73,129.71,0.05786008]
[1765424031212,2.00920167,129.73,129.71,3.44786008]
[1765424032713,2.00920167,129.73,129.71,0.05786008]
[1765424032913,8.94560167,129.73,129.71,0.05786008]
[1765424034813,11.66276618,129.72,129.71,0.05786008]
[1765424035003,8.94560167,129.73,129.71,0.05786008]
[1765424035207,2.00920167,129.72,129.71,0.05786008]
[1765424036010,7.7357757,129.72,129.71,0.05786008]
[1765424036209,13.67373117,129.72,129.71,0.05786008]
[1765424037009,121.58113117,129.72,129.62,6.9417]
[1765424037211,2.00920167,129.68,129.63,3.39]
[1765424038016,0.05297566,129.67,129.64,0.04966823]
[1765424038219,0.05297566,129.67,129.65,3.39]
[1765424039619,8.94940167,129.66,129.62,3.39]
[1765424040520,2.00920167,129.66,129.62,3.39]
[1765424040716,0.05827603,129.65,129.64,3.39]
[1765424041015,0.05827603,129.65,129.63,0.05777114]
[1765424041216,2.00920167,129.64,129.63,0.05777114]
[1765424042514,0.05827603,129.65,129.63,3.44777114]
[1765424042717,11.65621286,129.7,129.64,3.39]
[1765424042911,107.8953,129.74,129.64,3.39]
[1765424043127,2.00920167,129.69,129.64,3.39]
[1765424043622,0.04921923,129.68,129.66,3.39]
[1765424044320,2.00920167,129.67,129.65,0.05373321]
[1765424044520,2.00920167,129.67,129.65,3.20373321]
[1765424044716,0.04921923,129.68,129.65,3.20373321]
[1765424055532,6.98831923,129.68,129.65,0.05373321]
[1765424055718,6.98831923,129.68,129.65,3.46373321]
[1765424055921,0.04921923,129.68,129.65,3.46373321]
[1765424058030,6.98831923,129.68,129.65,3.46373321]
[1765424062230,0.04921923,129.68,129.65,3.46373321]
[1765424063818,6.98821923,129.68,129.65,3.46373321]
[1765424065634,0.04921923,129.68,129.65,3.46373321]
[1765424071637,6.98831923,129.68,129.65,3.46373321]
[1765424071833,0.04921923,129.68,129.65,3.46373321]
[1765424073634,28.9371,129.72,129.65,3.46373321]
[1765424073834,6.9371,129.72,129.65,3.46373321]
[1765424074737,6.936,129.74,129.67,3.31]
[1765424075044,107.8702,129.77,129.7,3.31]
[1765424075233,14.84804773,129.76,129.72,3.36358935]
[1765424075433,11.7088464,129.75,129.72,3.36358935]
[1765424075740,6.9353,129.75,129.72,3.36358935]
[1765424076834,6.9359,129.74,129.72,0.05358935]
[1765424077333,6.9359,129.74,129.72,3.36358935]
[1765424077534,6.9359,129.74,129.72,0.05358935]
[1765424079238,10.07510133,129.74,129.72,0.05358935]
[1765424084248,6.9359,129.74,129.72,0.05358935]
[1765424084549,6.9342,129.77,129.72,3.36358935]
[1765424084946,68.67920133,129.79,129.72,3.36358935]
[1765424085141,107.8254,129.82,129.72,3.36358935]
[1765424085342,107.8254,129.82,129.71,3.13920133]
[1765424085343,11.69034619,129.81,129.77,3.31]
[1765424085542,107.8016,129.85,129.77,3.31]
[1765424085543,3.13920133,129.83,129.77,3.31]
[1765424085943,3.13920133,129.83,129.79,3.36140547]
[1765424086137,107.8016,129.85,129.79,3.36140547]
[1765424086340,14.83026769,129.84,129.79,3.36140547]
[1765424086537,107.7745,129.88,129.79,3.36140547]
[1765424086748,3.13920133,129.86,129.79,3.36140547]
[1765424087048,3.13920133,129.84,129.82,0.05042233]
[1765424087247,3.13920133,129.83,129.82,0.05042233]
[1765424088348,117.87830133,129.84,129.82,0.05042233]
[1765424088548,121.01750266,129.84,129.77,3.31]
[1765424088754,3.13920133,129.81,129.77,3.31]
[1765424089644,107.8169,129.83,129.78,0.05631437]
[1765424089645,3.13920133,129.79,129.78,0.05631437]
[1765424089848,3.13920133,129.79,129.75,3.31]
[1765424089849,3.13920133,129.79,129.77,0.05296284]
[1765424091248,117.91980133,129.79,129.77,0.05296284]
[1765424093752,3.13920133,129.78,129.77,0.05296284]
[1765424094553,6.9348,129.76,129.7,3.31]
[1765424094853,3.13920133,129.74,129.7,3.31]
[1765424095250,3.13920133,129.74,129.66,6.9397]
[1765424095450,6.9354,129.75,129.66,6.9397]
[1765424095451,0.05223125,129.71,129.69,3.36756069]
[1765424099958,3.13920133,129.74,129.69,3.36756069]
[1765424100457,10.07400133,129.76,129.69,3.36756069]
[1765424100657,3.13920133,129.74,129.69,3.36756069]
[1765424100955,3.13920133,129.72,129.7,0.05281996]
[1765424101155,3.13920133,129.72,129.7,3.36281996]
[1765424101551,3.13920133,129.72,129.7,0.05281996]
[1765424101745,0.05118697,129.73,129.7,3.36281996]
[1765424109370,28.9333,129.79,129.71,3.39]
[1765424109571,2.00691317,129.77,129.73,3.39]
[1765424110279,2.00691317,129.77,129.75,3.39]
[1765424111779,2.00691317,129.77,129.74,0.05421386]
[1765424111981,2.00691317,129.75,129.68,3.12]
[1765424112181,2.00691317,129.7,129.68,3.12]
[1765424112984,2.05852879,129.7,129.68,3.17008705]
[1765424114076,0.05161562,129.7,129.68,3.17008705]
[1765424114276,2.05852879,129.7,129.68,3.17008705]
[1765424115776,0.05161562,129.7,129.68,3.17008705]
[1765424116790,6.9353,129.75,129.68,3.17008705]
[1765424117080,2.00691317,129.72,129.68,3.17008705]
[1765424120079,2.00691317,129.75,129.69,3.12]
[1765424120279,2.00691317,129.75,129.72,3.12]
[1765424120783,6.9343,129.77,129.72,3.12]
[1765424121181,2.00691317,129.76,129.72,3.12]
[1765424123991,2.00691317,129.74,129.71,0.05751424]
[1765424124176,2.00691317,129.74,129.71,3.17751424]
[1765424125285,6.9343,129.77,129.71,3.17751424]
[1765424125586,2.00691317,129.75,129.71,3.17751424]
[1765424126693,6.9343,129.77,129.71,3.17751424]
[1765424126885,2.00691317,129.75,129.71,3.17751424]
[1765424127784,2.00691317,129.76,129.71,3.17751424]
[1765424127988,2.00691317,129.76,129.73,3.12]
[1765424128291,22.0,129.8,129.73,3.12]
[1765424128487,2.00691317,129.77,129.75,0.05883663]
[1765424128689,2.00691317,129.77,129.75,3.17883663]
[1765424129091,2.00691317,129.79,129.75,3.17883663]
[1765424132089,2.00691317,129.77,129.75,3.17883663]
[1765424132291,2.00691317,129.77,129.75,3.17001059]
[1765424132797,2.00691317,129.78,129.75,3.17001059]
[1765424133090,2.00691317,129.78,129.75,3.17878171]
[1765424134085,2.00691317,129.8,129.75,3.17878171]
[1765424134287,2.00691317,129.8,129.77,3.46]
[1765424135891,2.00691317,129.83,129.78,3.46]
[1765424136085,2.00691317,129.83,129.79,3.51688609]
[1765424137186,2.00691317,129.81,129.79,3.51688609]
[1765424137587,6.9305,129.84,129.79,3.51688609]
[1765424137789,2.00691317,129.81,129.79,3.51688609]
[1765424139196,6.9305,129.84,129.79,3.51688609]
[1765424139400,2.00691317,129.82,129.79,0.05688609]
[1765424141695,6.931,129.83,129.79,3.51688609]
[1765424141897,2.00691317,129.82,129.79,3.51688609]
[1765424142987,28.9302,129.85,129.79,3.51688609]
[1765424142988,2.00691317,129.85,129.79,68.97688609]
[1765424143188,2.00691317,129.85,129.8,3.46]
[1765424143698,6.9291,129.87,129.8,3.46]
[1765424143902,2.00691317,129.86,129.82,3.5101358]
[1765424144891,2.00691317,129.87,129.82,3.5101358]
[1765424145398,2.00691317,129.88,129.82,3.5101358]
[1765424145693,2.00691317,129.88,129.84,3.51093654]
[1765424146193,107.7407,129.92,129.84,3.51093654]
[1765424146398,2.00691317,129.89,129.87,0.0555697]
[1765424146603,6.9264,129.92,129.87,3.5155697]
[1765424146902,2.00691317,129.9,129.87,3.5155697]
[1765424147291,87.5,129.94,129.87,3.5155697]
[1765424147292,2.00691317,129.92,129.87,3.5155697]
[1765424147889,2.00691317,129.92,129.88,6.9279]
[1765424148094,2.00691317,129.92,129.89,3.46]
[1765424148296,2.00691317,129.93,129.89,3.46]
[1765424148598,2.00691317,129.93,129.9,3.51563312]
[1765424148897,6.9246,129.95,129.9,3.51563312]
[1765424149100,2.00691317,129.94,129.9,3.51563312]
[1765424149399,2.00691317,129.94,129.91,3.51267891]
[1765424149598,6.9241,129.96,129.91,3.51267891]
[1765424149799,2.00691317,129.93,129.91,3.51267891]
[1765424150805,2.00691317,129.93,129.91,0.05267891]
[1765424151101,2.00691317,129.94,129.91,3.51267891]
[1765424151301,107.6484,130.03,129.92,68.88]
[1765424151602,2.00691317,129.97,129.96,0.05783801]
[1765424151796,107.6484,130.03,129.96,0.05783801]
[1765424151797,2.00691317,129.98,129.96,0.05783801]
[1765424154695,2.00691317,129.97,129.96,0.05783801]
[1765424154905,2.00691317,129.97,129.96,3.51783801]
[1765424155207,2.00691317,129.97,129.96,0.05783801]
[1765424155391,6.9221,130.0,129.96,0.05783801]
[1765424155591,2.00691317,129.98,129.96,0.05783801]
[1765424160503,2.00691317,129.97,129.9,3.46]
[1765424160709,2.00691317,129.94,129.9,3.46]
[1765424161206,107.6451,130.04,129.93,3.46]
[1765424161505,107.6451,130.04,129.92,2.00691317]
[1765424161506,0.05573997,129.99,129.97,0.05476629]
[1765424161709,0.05573997,129.99,129.97,3.51476629]
[1765424161901,2.00691317,130.03,129.97,3.51476629]
[1765424162202,65.42,130.05,129.97,3.51476629]
[1765424162203,65.42,130.05,129.97,3.46]
[1765424162408,2.00691317,130.02,129.97,3.46]
[1765424162596,2.00691317,130.0,129.97,3.46]
[1765424162910,2.00691317,130.0,129.97,0.05728948]
[1765424163109,2.00691317,129.98,129.97,0.05728948]
[1765424163503,2.00691317,130.02,129.97,3.51728948]
[1765424163803,2.00691317,129.99,129.97,0.05728948]
[1765424164106,2.00691317,129.99,129.97,0.05710356]
[1765424164304,6.9215,130.01,129.97,3.24710356]
[1765424164305,2.00691317,130.01,129.97,3.24710356]
[1765424165203,2.00691317,129.99,129.97,0.05710356]
[1765424166619,2.00691317,130.0,129.97,3.24710356]
[1765424167114,6.9203,130.03,129.97,3.24710356]
[1765424167610,2.00691317,130.0,129.97,3.24710356]
[1765424168013,6.9203,130.03,129.97,3.24710356]
[1765424168311,2.00691317,130.0,129.97,3.24710356]
[1765424168709,3.12412423,130.02,129.97,3.24710356]
[1765424169007,6.9203,130.03,129.97,3.24710356]
[1765424169312,10.04442423,130.03,129.97,3.24710356]
[1765424171610,3.12412423,130.01,129.97,0.05710356]
[1765424171811,3.12412423,129.99,129.97,0.05710356]
[1765424172817,10.04612423,130.0,129.97,0.05710356]
[1765424173212,3.12412423,129.98,129.97,0.05710356]
[1765424173715,3.12412423,129.98,129.92,65.36]
[1765424173910,107.6881,129.99,129.93,3.4]
[1765424173911,3.12412423,129.96,129.93,3.4]
[1765424174104,3.12412423,129.96,129.9,3.4]
[1765424174305,3.12412423,129.94,129.9,3.4]
[1765424174710,0.05392372,129.93,129.91,3.45220239]
[1765424174915,3.12412423,130.0,129.91,3.45220239]
[1765424175116,3.12412423,130.0,129.92,3.4]
[1765424175311,3.12412423,130.0,129.94,3.4]
[1765424175508,6.9215,130.01,129.95,3.4]
[1765424175913,6.9215,130.01,129.97,3.45652189]
[1765424177813,10.04562423,130.01,129.97,3.45652189]
[1765424178309,6.9205,130.03,129.97,3.45652189]
[1765424178721,3.12412423,130.02,129.97,3.45652189]
[1765424179316,107.6518,130.03,129.97,3.45652189]
[1765424179518,3.12412423,130.01,129.97,3.45652189]
[1765424180326,3.12412423,130.03,129.97,3.45652189]
[1765424181426,6.9199,130.04,129.97,3.45652189]
[1765424182423,107.6294,130.06,129.98,3.4]
[1765424182424,10.04292423,130.06,129.98,3.4]
[1765424182727,6.9188,130.06,130.01,3.45893905]
[1765424183426,6.9193,130.05,130.01,3.45893905]
[1765424183729,107.6257,130.06,130.01,0.05893905]
[1765424184225,6.9187,130.06,130.01,0.05893905]
[1765424184827,6.9187,130.06,130.01,3.45893905]
[1765424185323,6.9193,130.05,130.01,0.05893905]
[1765424185622,6.9193,130.05,130.01,3.45893905]
[1765424186327,6.9184,130.07,130.01,3.45893905]
[1765424186529,5.88812929,130.06,130.01,3.45893905]
[1765424186728,6.9184,130.07,130.01,3.45893905]
[1765424186929,14.58698182,130.06,130.01,0.05893905]
[1765424187127,113.52300946,130.05,130.01,0.05893905]
[1765424187322,113.53180946,130.04,130.01,0.05893905]
[1765424187528,5.88900946,130.03,130.01,0.05893905]
[1765424187724,5.88900946,130.02,129.96,3.4]
[1765424187927,5.89463221,130.01,129.96,3.4]
[1765424188135,5.89463221,130.0,129.96,3.4]
[1765424188334,5.89463221,129.99,129.96,3.4]
[1765424188626,107.6568,130.02,129.93,3.4]
[1765424188829,0.04898906,129.99,129.96,0.04904213]
[1765424189134,0.04898906,129.99,129.96,3.44904213]
[1765424190725,6.9188,130.06,129.97,3.4]
[1765424191033,11.48213957,130.05,129.97,3.4]
[1765424191234,5.91681572,130.04,129.97,3.4]
[1765424191531,5.92080437,130.03,129.95,68.74]
[1765424191834,11.48803568,130.02,129.98,3.45061743]
[1765424192031,5.92080437,130.01,129.98,3.45061743]
[1765424192231,6.9204,130.03,129.98,3.45061743]
[1765424192535,11.4906199,130.02,129.98,3.45061743]
[1765424192736,5.92093872,130.01,129.98,3.45061743]
[1765424192923,6.9204,130.03,129.98,3.45061743]
[1765424193128,18.41170659,130.02,129.98,0.05061743]
[1765424193337,5.9209317,130.01,129.98,3.45061743]
[1765424193633,6.9211,130.02,129.98,3.45061743]
[1765424193835,5.92553844,130.01,129.98,3.45061743]
[1765424194031,5.92553844,130.0,129.98,3.45061743]
[1765424194329,6.9211,130.02,129.98,3.45061743]
[1765424194524,11.50500788,130.01,129.98,3.45061743]
[1765424194725,5.92837806,130.0,129.98,3.45061743]
[1765424194925,107.6574,130.02,129.98,0.05061743]
[1765424195123,11.50451209,130.01,129.94,3.33]
[1765424195327,11.50451209,130.0,129.94,3.33]
[1765424195524,107.6574,130.02,129.94,3.33]
[1765424195525,5.92839529,129.99,129.94,3.33]
[1765424195734,107.6432,130.04,129.94,3.33]
[1765424195938,11.5136752,130.03,129.94,3.33]
[1765424196144,0.05251675,130.0,129.98,3.37938721]
[1765424197939,8.69797236,130.06,129.98,3.37938721]
[1765424198137,11.51540088,130.05,129.98,3.33]
[1765424198337,11.51540088,130.04,129.99,3.33]
[1765424198538,6.9192,130.05,129.99,3.33]
[1765424198737,11.50640003,130.04,129.99,3.33]
[1765424198942,6.9184,130.07,129.99,10.2521]
[1765424199242,11.50583881,130.06,130.0,3.38758489]
[1765424199436,11.50583881,130.05,130.0,3.38758489]
[1765424199743,5.92772805,130.04,130.0,3.38758489]
[1765424199945,107.6187,130.07,130.0,3.38758489]
[1765424200142,6.9194,130.05,130.0,3.38758489]
[1765424200342,5.92885029,130.04,130.0,3.38758489]
[1765424200544,6.9194,130.05,130.0,3.38758489]
[1765424200743,5.92888511,130.04,130.0,3.38758489]
[1765424200945,6.9194,130.05,130.0,3.38758489]
[1765424201145,6.9183,130.07,130.0,3.38758489]
[1765424201340,11.51147767,130.06,130.0,3.38758489]
[1765424201544,5.93074124,130.05,130.0,3.38758489]
[1765424201746,6.9188,130.06,130.0,3.38758489]
[1765424201946,5.9316684,130.05,130.02,3.38399645]
[1765424202246,8.69797236,130.09,130.02,3.38399645]
[1765424202440,12.85068658,130.08,130.02,3.38399645]
[1765424202641,6.9177,130.08,130.02,3.38399645]
[1765424202852,107.588,130.11,130.02,3.38399645]
[1765424203043,11.51557902,130.1,130.05,3.37933351]
[1765424203239,5.9337324,130.09,130.05,3.37933351]
[1765424203439,107.588,130.11,130.05,3.37933351]
[1765424203638,11.52198896,130.1,130.05,3.37933351]
[1765424203843,107.588,130.11,130.05,3.37933351]
[1765424204050,6.9172,130.09,130.05,3.37933351]
[1765424205044,6.9162,130.11,130.05,3.37933351]
[1765424205342,107.576,130.12,130.06,3.33]
[1765424205650,107.576,130.12,130.08,0.05085645]
[1765424205846,6.9167,130.1,130.08,0.05085645]
[1765424207947,6.9155,130.12,130.08,3.38085645]
[1765424208153,11.49635961,130.15,130.08,3.38085645]
[1765424208453,31.83797236,130.17,130.1,3.38768821]
[1765424208661,1.33763838,130.15,130.1,3.38768821]
[1765424208961,107.5575,130.14,130.1,0.05768821]
[1765424209343,6.9152,130.13,130.1,0.05768821]
[1765424209965,6.9146,130.14,130.1,3.38768821]
[1765424210342,108.88893838,130.15,130.1,0.05768821]
[1765424210560,107.5466,130.16,130.1,3.38768821]
[1765424211554,5.55825744,130.18,130.1,3.38768821]
[1765424211765,172.8939,130.2,130.13,0.0510198]
[1765424211766,107.5167,130.19,130.13,0.0510198]
[1765424212258,6.912,130.19,130.13,3.3810198]
[1765424212856,6.9124,130.18,130.13,3.3810198]
[1765424213063,107.5246,130.18,130.13,0.0510198]
[1765424213365,130.6596,130.19,130.13,0.0510198]
[1765424213663,6.913,130.17,130.13,3.3810198]
[1765424215559,6.912,130.19,130.13,3.3810198]
[1765424215961,131.98735287,130.2,130.13,3.3810198]
[1765424216165,137.89836041,130.2,130.13,3.3810198]
[1765424216759,6.9124,130.18,130.13,3.3810198]
[1765424217366,107.505,130.21,130.13,3.3810198]
[1765424217367,107.5032,130.21,130.16,3.33]
[1765424217568,107.5032,130.21,130.17,0.05768853]
[1765424218965,107.5331,130.17,130.1,3.33]
[1765424219167,139.36357236,130.18,130.1,3.33]
[1765424219572,6.9135,130.16,130.1,3.33]
[1765424219763,107.5329,130.17,130.1,3.33]
[1765424219959,107.5441,130.16,130.07,3.33]
[1765424220163,0.05350821,130.13,130.1,0.05621404]
[1765424220760,107.62200821,130.13,130.1,0.05621404]
[1765424221674,6.9157,130.12,130.1,0.05621404]
[1765424223160,6.917,130.09,130.03,3.33]
[1765424223763,130.6915,130.15,130.04,3.33]
[1765424223963,107.5581,130.14,130.04,3.33]
[1765424224175,0.05704967,130.1,130.08,0.05219195]
[1765424227579,3.63980866,130.09,130.08,0.05219195]
[1765424228778,0.05704967,130.1,130.08,3.49219195]
[1765424228976,5.89904008,130.15,130.08,3.49219195]
[1765424229168,3.63980866,130.16,130.09,3.44]
[1765424230081,0.05605541,130.14,130.11,3.49693311]
[1765424231773,0.05605541,130.14,130.12,3.22]
[1765424233881,6.9125,130.18,130.12,3.22]
[1765424234083,6.9113,130.2,130.13,3.22]
[1765424235090,6.9113,130.2,130.16,3.22]
[1765424235388,12.4513053,130.22,130.16,3.22]
[1765424235581,12.4513053,130.22,130.18,0.05726683]
[1765424236380,6.9108,130.21,130.18,0.05726683]
[1765424236682,5.5409053,130.19,130.18,0.05726683]
[1765424237878,6.9126,130.18,130.13,3.22]
[1765424238180,6.9126,130.18,130.11,65.28]
[1765424238383,6.9126,130.18,130.11,68.5]
[1765424238774,5.5409053,130.16,130.09,6.9167]
[1765424238974,0.05635206,130.14,130.11,0.05130355]
[1765424239289,5.5409053,130.13,130.11,0.05130355]
[1765424239881,12.4560053,130.13,130.11,0.05130355]
[1765424241389,0.05635206,130.14,130.11,3.27130355]
[1765424241889,0.05635206,130.14,130.11,0.05130355]
[1765424243386,6.9151,130.13,130.11,0.05130355]
[1765424245980,5.5409053,130.12,130.11,0.05130355]
[1765424246183,6.9165,130.1,130.05,3.22]
[1765424247187,0.05379402,130.09,130.06,3.27415606]
[1765424248685,6.97099402,130.09,130.06,0.05415606]
[1765424253791,0.05379402,130.09,130.06,3.27415606]
[1765424255891,0.05379402,130.09,130.07,3.15]
[1765424258089,6.9147,130.14,130.07,3.15]
[1765424258492,6.9147,130.14,130.08,3.15]
[1765424258686,6.9135,130.16,130.1,3.15]
[1765424259101,0.05689475,130.14,130.13,3.15]
[1765424259294,0.05568645,130.15,130.13,3.15]
[1765424259596,0.05568645,130.15,130.13,3.20143163]
[1765424259597,0.05217642,130.15,130.13,3.20143163]
[1765424264193,6.9156,130.12,130.06,3.15]